bitfinex/quotes_ETHUSD_20260110
["timestamp","ask_amount","ask_price","bid_price","bid_amount"]
[1768077150336,0.25680008,3092.1,3091.6,0.30352014]
[1768077152416,0.002,3091.8,3091.6,0.30352014]
[1768077152585,0.25680008,3092.1,3091.6,0.76166293]
[1768077152780,0.25680008,3092.1,3091.6,0.30352014]
[1768077156414,0.98810085,3092.0,3091.6,0.30352014]
[1768077156913,0.25680008,3092.1,3091.6,0.30352014]
[1768077161526,0.25680008,3092.1,3091.6,0.04852014]
[1768077161714,0.25680008,3092.1,3091.6,0.95620723]
[1768077163925,0.002,3091.8,3091.6,0.95620723]
[1768077164097,0.002,3091.8,3091.6,1.38014741]
[1768077167441,0.002,3091.8,3091.6,0.47246032]
[1768077176849,0.09496206,3092.1,3091.6,0.47246032]
[1768077177152,0.09496206,3092.1,3091.7,0.00080016]
[1768077183271,0.00080016,3092.4,3092.0,1.00493643]
[1768077183509,0.00280008,3092.5,3092.0,1.00493643]
[1768077183510,0.00280008,3092.5,3092.2,0.04852014]
[1768077183632,0.00280008,3092.5,3092.2,1.04637373]
[1768077184261,0.00280008,3092.5,3092.4,0.04852014]
[1768077186135,0.002,3092.7,3092.4,1.04637373]
[1768077187161,0.002,3093.0,3092.4,1.04637373]
[1768077187350,0.002,3093.0,3092.6,1.04637373]
[1768077189161,0.002,3093.0,3092.6,0.04852014]
[1768077189364,0.99687584,3093.0,3092.4,0.0493203]
[1768077192364,0.99687584,3093.0,3092.4,0.00080016]
[1768077192572,1.03529098,3092.9,3092.4,0.00080016]
[1768077193065,1.03529098,3092.9,3092.5,0.04852014]
[1768077193266,0.99487584,3092.9,3092.5,0.04852014]
[1768077193467,0.002,3093.0,3092.5,0.04852014]
[1768077193639,0.32566017,3093.0,3092.5,0.04852014]
[1768077194269,0.002,3093.0,3092.5,0.04852014]
[1768077195792,0.99687584,3093.0,3092.2,0.0493203]
[1768077196000,0.99487584,3092.7,3092.2,0.00080016]
[1768077196896,0.99487584,3092.7,3092.2,0.05253656]
[1768077200201,0.99487584,3092.7,3092.5,0.001]
[1768077200399,1.41777635,3092.7,3092.5,0.001]
[1768077200576,1.41977635,3092.7,3092.5,0.001]
[1768077201172,0.99487584,3092.6,3092.5,0.001]
[1768077223326,0.002,3092.7,3092.5,0.001]
[1768077242371,0.98785451,3092.7,3092.5,0.001]
[1768077242675,0.98665467,3092.5,3091.3,0.00080016]
[1768077242981,0.98585451,3092.0,3091.3,0.00080016]
[1768077243276,0.98665467,3091.7,3090.6,0.90203658]
[1768077244044,0.98665467,3091.7,3090.5,0.002]
[1768077244477,0.9796765,3091.5,3090.5,0.002]
[1768077244678,0.9796765,3091.3,3090.5,0.002]
[1768077246550,0.9796765,3091.1,3090.5,0.002]
[1768077247476,0.9776765,3091.1,3090.5,0.002]
[1768077249382,4.21278578,3091.1,3090.5,0.002]
[1768077250278,0.9796765,3091.0,3090.5,0.002]
[1768077250650,1.40115508,3091.0,3090.5,0.002]
[1768077253481,0.9796765,3090.9,3090.5,0.002]
[1768077255282,0.9796765,3090.9,3090.4,0.0028]
[1768077255283,4.46898013,3090.9,3090.4,0.0028]
[1768077256354,0.0404426,3090.8,3090.4,0.0028]
[1768077257067,1.0201191,3090.8,3090.4,0.0028]
[1768077257383,0.9796765,3090.7,3090.4,0.0028]
[1768077260189,0.9796765,3090.7,3089.5,0.05496993]
[1768077260190,0.0008,3089.6,3089.5,0.05496993]
[1768077260364,0.2548,3090.0,3089.5,1.04704114]
[1768077261070,0.2548,3090.0,3089.2,1.04784122]
[1768077261394,0.2548,3090.0,3089.4,0.05496993]
[1768077261558,1.2344765,3090.0,3089.4,0.05496993]
[1768077261759,0.9796765,3089.9,3089.2,1.04784122]
[1768077262160,0.44708182,3089.8,3089.2,1.04784122]
[1768077262664,0.44708182,3089.8,3089.2,0.05577001]
[1768077262869,0.9796765,3089.8,3089.2,0.05577001]
[1768077263768,3.49108252,3090.0,3089.2,0.05577001]
[1768077263978,0.2548,3090.0,3089.5,0.99207121]
[1768077264366,0.2548,3090.0,3089.4,0.05496993]
[1768077266308,3.49106027,3090.0,3089.4,0.05496993]
[1768077266519,3.94217899,3090.0,3089.4,0.05496993]
[1768077269310,0.70591872,3090.0,3089.4,0.05496993]
[1768077269511,0.70591872,3090.0,3089.4,1.04704114]
[1768077270519,3.94217529,3090.0,3089.4,1.04704114]
[1768077271424,3.94217529,3090.0,3089.5,0.002]
[1768077271723,0.001,3089.7,3089.5,0.002]
[1768077273892,0.001,3089.7,3089.5,0.91430014]
[1768077287252,0.001,3089.7,3089.5,0.002]
[1768077287650,0.001,3089.7,3089.5,0.91430014]
[1768077291528,0.001,3089.7,3089.5,0.002]
[1768077297655,0.001,3089.7,3089.5,0.99784194]
[1768077298362,0.2558,3090.0,3089.7,0.99584194]
[1768077298563,0.2558,3090.0,3089.5,0.99784194]
[1768077300266,0.0008,3090.0,3089.6,1.05081187]
[1768077301257,0.0008,3090.0,3089.6,0.05496993]
[1768077301463,0.0008,3090.0,3089.5,0.002]
[1768077305034,0.0008,3090.0,3089.5,0.99357768]
[1768077305234,0.0008,3090.0,3089.5,0.002]
[1768077306136,0.0008,3090.0,3089.5,0.99357768]
[1768077308675,0.001,3089.7,3089.5,0.99357768]
[1768077308841,0.001,3089.7,3089.5,1.42212807]
[1768077310176,0.0008,3090.0,3089.7,0.99157768]
[1768077315492,0.0008,3090.0,3089.6,0.05496993]
[1768077318262,0.0008,3090.0,3089.6,1.04654761]
[1768077320298,0.001,3089.7,3089.6,1.04654761]
[1768077320599,0.0008,3090.0,3089.6,1.04654761]
[1768077320899,0.0008,3090.0,3089.6,0.05496993]
[1768077328490,0.0008,3090.0,3089.6,1.04654761]
[1768077331914,0.001,3089.7,3089.6,1.04654761]
[1768077332117,0.0008,3090.0,3089.6,1.04654761]
[1768077332323,0.0008,3090.0,3089.6,0.05496993]
[1768077333995,0.0008,3090.0,3089.6,0.96233095]
[1768077343341,0.0008,3090.0,3089.8,0.96233095]
[1768077344340,0.0008,3090.0,3089.8,0.05496993]
[1768077348511,0.0008,3090.0,3089.7,0.90736102]
[1768077362666,0.0008,3090.0,3089.6,0.05496993]
[1768077363259,0.0008,3090.0,3089.6,1.05328542]
[1768077367476,0.001,3089.7,3089.6,1.05328542]
[1768077367778,0.0008,3090.0,3089.6,0.05496993]
[1768077369767,0.93367178,3090.0,3089.6,0.05496993]
[1768077372682,0.93287178,3089.9,3089.6,0.05496993]
[1768077372987,3.23705243,3090.0,3089.6,0.05496993]
[1768077373547,8.14677306,3090.0,3089.5,0.002]
[1768077373748,0.97332616,3089.9,3089.5,0.002]
[1768077374049,0.93287178,3089.9,3089.5,0.002]
[1768077375255,4.16931739,3089.9,3089.5,0.002]
[1768077377275,0.93287178,3089.8,3089.5,0.002]
[1768077379579,3.23756018,3089.7,3089.5,0.002]
[1768077380176,0.001,3089.7,3089.5,0.002]
[1768077393956,0.64838912,3089.7,3089.5,0.002]
[1768077394756,0.001,3089.7,3089.5,0.002]
[1768077397974,0.1699514,3089.7,3089.5,0.002]
[1768077405503,0.1699514,3089.7,3089.5,0.90574055]
[1768077409112,0.1699514,3089.7,3089.5,0.002]
[1768077425543,0.1699514,3089.7,3089.5,0.9661637]
[1768077428250,0.1699514,3089.7,3089.5,0.002]
[1768077439058,0.62696419,3089.7,3089.5,0.002]
[1768077439954,0.1699514,3089.7,3089.5,0.002]
[1768077445732,3.40652488,3089.7,3089.2,0.05577001]
[1768077446039,3.40652488,3089.7,3089.2,0.00080008]
[1768077446240,4.31524087,3089.7,3089.2,0.00080008]
[1768077446645,3.40652488,3089.7,3089.2,0.00080008]
[1768077447336,3.40652488,3089.7,3089.2,0.05577001]
[1768077447964,3.40652488,3089.7,3089.5,0.002]
[1768077448162,0.95061235,3089.7,3089.2,0.05577001]
[1768077448462,0.1699514,3089.7,3089.2,0.05577001]
[1768077450570,0.1699514,3089.7,3089.2,1.01993371]
[1768077452166,3.40651557,3089.7,3089.2,1.01993371]
[1768077459483,3.40651557,3089.7,3089.5,0.002]
[1768077459692,3.40651557,3089.7,3089.2,1.01993371]
[1768077459978,4.18717559,3089.7,3089.2,1.01993371]
[1768077464788,0.97132172,3089.6,3089.2,1.01993371]
[1768077467728,0.98357631,3089.5,3089.2,0.05577001]
[1768077468331,1.11308587,3089.5,3089.2,0.05577001]
[1768077469386,0.12950956,3089.5,3089.2,0.05577001]
[1768077475025,0.12950956,3089.5,3089.2,1.02359271]
[1768077476928,0.12950956,3089.5,3089.2,0.05577001]
[1768077480935,0.12950956,3089.5,3089.3,0.9678227]
[1768077483205,0.12950956,3089.5,3089.2,0.05577001]
[1768077486641,0.12950956,3089.5,3089.2,0.98161041]
[1768077489852,0.12950956,3089.5,3089.2,0.05577001]
[1768077492956,0.12950956,3089.5,3089.2,0.98161041]
[1768077496452,0.12750957,3089.5,3089.3,0.9258404]
[1768077496820,0.1699514,3089.7,3089.5,0.9258404]
[1768077497940,0.1699514,3089.7,3089.4,0.98081033]
[1768077498148,0.001,3089.7,3089.4,0.98081033]
[1768077502660,0.44283012,3089.7,3089.4,0.98081033]
[1768077503473,0.44283012,3089.7,3089.4,0.05496993]
[1768077521494,0.001,3089.7,3089.4,0.05496993]
[1768077552325,0.93139275,3089.7,3089.4,0.05496993]
[1768077554237,0.001,3089.7,3089.4,0.05496993]
[1768077587820,3.23756018,3089.7,3089.4,0.05496993]
[1768077588849,0.001,3089.7,3089.4,0.05496993]
[1768077598463,1.46831741,3089.7,3089.2,0.05577001]
[1768077598664,4.70488708,3089.7,3089.2,0.05577001]
[1768077602264,4.70488708,3089.7,3088.6,0.96268721]
[1768077602265,5.55217334,3089.5,3088.6,0.96268721]
[1768077602568,0.93677525,3089.4,3088.7,0.96469211]
[1768077602861,0.93677525,3089.3,3088.7,0.96469211]
[1768077603037,0.93677525,3089.2,3088.7,0.96469211]
[1768077603437,0.93677525,3089.2,3088.6,0.05496993]
[1768077603635,0.93677525,3089.2,3088.7,0.96469211]
[1768077603859,0.93677525,3089.2,3088.8,0.05496993]
[1768077611978,3.23698035,3089.3,3088.8,0.05496993]
[1768077612981,3.23698035,3089.3,3089.1,0.002]
[1768077613150,0.57319403,3089.2,3088.8,0.05696993]
[1768077614642,4.75682894,3089.4,3088.8,0.05696993]
[1768077616304,8.96881669,3089.4,3088.8,0.002]
[1768077616486,4.76718731,3089.4,3088.8,0.002]
[1768077617551,4.76718731,3089.4,3088.8,0.05696993]
[1768077617751,0.97505048,3089.3,3088.8,0.05696993]
[1768077617984,0.47671873,3089.2,3088.8,0.05696993]
[1768077618190,3.79209557,3089.4,3088.8,1.01509585]
[1768077618665,4.76714605,3089.4,3088.8,0.05696993]
[1768077620193,0.97505048,3089.3,3088.8,0.05696993]
[1768077624994,0.97505048,3089.3,3089.1,0.002]
[1768077628780,3.79209557,3089.4,3089.1,0.002]
[1768077628980,0.59068575,3089.3,3089.1,0.002]
[1768077631312,0.16821359,3089.5,3089.1,0.002]
[1768077631513,3.40499014,3089.5,3089.1,0.002]
[1768077632125,0.16821359,3089.5,3089.1,0.96012592]
[1768077636696,0.001,3089.2,3089.1,0.96012592]
[1768077638902,0.001,3089.2,3089.1,0.002]
[1768077662474,0.94596026,3089.9,3089.4,0.05496993]
[1768077662669,1.25129473,3090.0,3089.4,0.05496993]
[1768077663078,0.99549473,3089.9,3089.4,0.05496993]
[1768077663368,3.23635112,3089.9,3089.4,0.05496993]
[1768077663575,0.2558,3090.0,3089.4,0.05496993]
[1768077663576,0.0008,3090.0,3089.4,0.05496993]
[1768077663773,0.0008,3090.0,3089.6,0.05496993]
[1768077663971,0.44012779,3090.0,3089.6,0.05496993]
[1768077666981,0.44012779,3090.0,3089.6,1.03906833]
[1768077667900,4.57765967,3090.0,3089.6,0.05496993]
[1768077668594,7.81391376,3090.0,3089.4,1.02622247]
[1768077668896,7.81391376,3090.0,3089.4,0.05496993]
[1768077669073,0.80689138,3089.9,3089.4,0.05496993]
[1768077669463,0.90127779,3089.8,3089.3,0.97125254]
[1768077669890,4.13781531,3089.8,3089.3,0.97125254]
[1768077670090,0.90127779,3089.7,3089.3,0.97125254]
[1768077671771,0.90127779,3089.7,3089.5,0.002]
[1768077672203,0.90127779,3089.6,3089.5,0.002]
[1768077674413,4.13773583,3089.8,3089.5,0.002]
[1768077681442,3.23645804,3089.8,3089.5,0.002]
[1768077683137,4.04328988,3089.9,3089.5,0.002]
[1768077683438,3.2363985,3089.9,3089.5,0.002]
[1768077683642,3.2363985,3089.9,3089.8,0.002]
[1768077683840,3.90923553,3089.9,3089.5,0.002]
[1768077684051,3.2363985,3089.9,3089.5,0.002]
[1768077685846,3.23704595,3090.0,3089.5,0.002]
[1768077693773,6.4732919,3090.0,3089.5,0.002]
[1768077693936,7.46344848,3090.0,3089.5,0.002]
[1768077694277,0.77184485,3089.9,3089.5,0.002]
[1768077695049,3.23645543,3089.8,3089.5,0.002]
[1768077695973,0.001,3089.6,3089.5,0.002]
[1768077698580,0.001,3089.6,3089.2,0.00080016]
[1768077698977,0.001,3089.6,3089.2,0.0622958]
[1768077707490,0.001,3089.6,3089.5,0.002]
[1768077707787,0.4278215,3089.6,3089.2,0.0622958]
[1768077707990,0.001,3089.6,3089.2,0.0622958]
[1768077709301,0.99115658,3089.6,3089.2,0.0622958]
[1768077714395,0.001,3089.6,3089.2,0.0622958]
[1768077715396,0.91507009,3089.6,3089.2,0.0622958]
[1768077716766,4.15175838,3089.6,3089.2,0.0622958]
[1768077717000,3.23768829,3089.6,3089.2,0.0622958]
[1768077718697,0.001,3089.6,3089.2,0.0622958]
[1768077721211,0.001,3089.6,3089.5,0.002]
[1768077721379,0.7438562,3089.6,3089.2,0.0622958]
[1768077721581,0.001,3089.6,3089.2,0.0622958]
[1768077732619,0.001,3089.6,3089.5,0.002]
[1768077732801,0.001,3089.6,3089.2,0.0622958]
[1768077736724,0.9920834,3089.6,3089.2,0.0622958]
[1768077740544,0.001,3089.6,3089.2,0.0622958]
[1768077741714,0.9920834,3089.6,3089.2,0.0622958]
[1768077743435,0.001,3089.6,3089.2,0.0622958]
[1768077744133,0.001,3089.6,3089.5,0.002]
[1768077744332,0.42386075,3089.6,3089.5,0.002]
[1768077756716,0.42386075,3089.6,3089.2,0.0622958]
[1768077757015,0.001,3089.6,3089.2,1.00209243]
[1768077767864,0.001,3089.6,3089.5,0.002]
[1768077783169,0.001,3089.6,3089.2,0.0622958]
[1768077784288,3.23766494,3089.6,3089.2,0.0622958]
[1768077784655,3.23766494,3089.6,3089.2,0.00080016]
[1768077785187,0.73839888,3089.5,3089.2,0.00080016]
[1768077788296,4.94122177,3089.5,3089.2,0.00080016]
[1768077788479,4.94122177,3089.5,3089.1,0.002]
[1768077790510,8.17808974,3089.5,3089.1,0.002]
[1768077790690,8.17808974,3089.5,3088.8,0.31849564]
[1768077791003,0.81798899,3089.4,3089.0,0.06149564]
[1768077792609,4.05496714,3089.4,3088.8,0.31849564]
[1768077792806,4.05496714,3089.4,3089.0,0.06149564]
[1768077792974,4.05496714,3089.4,3088.8,0.31849564]
[1768077793175,4.05496714,3089.4,3089.0,0.06149564]
[1768077793386,0.825779,3089.3,3089.0,0.06149564]
[1768077794580,0.825779,3089.3,3089.0,0.06349564]
[1768077796122,4.06277113,3089.3,3089.0,0.06349564]
[1768077799124,4.06277113,3089.3,3089.0,0.002]
[1768077799312,3.23699213,3089.3,3089.0,0.002]
[1768077801429,3.23687447,3089.4,3089.0,0.002]
[1768077806546,0.001,3089.1,3089.0,0.002]
[1768077814628,0.001,3089.1,3088.8,0.06349564]
[1768077822070,0.001,3089.1,3088.8,0.002]
[1768077841996,3.40458908,3089.4,3088.8,0.002]
[1768077842293,3.60298789,3089.3,3088.8,0.002]
[1768077851594,3.60298789,3089.3,3089.1,0.002]
[1768077851797,3.60298789,3089.3,3088.8,0.92438727]
[1768077857609,3.60298789,3089.3,3088.8,0.002]
[1768077857782,0.99072856,3089.2,3088.8,0.002]
[1768077862718,3.60298789,3089.3,3088.8,0.002]
[1768077863115,3.60298789,3089.3,3088.8,0.06349564]
[1768077863620,3.60298789,3089.3,3089.1,0.002]
[1768077863820,0.47614311,3089.2,3088.8,0.06349564]
[1768077864027,3.60298789,3089.3,3088.8,0.98588291]
[1768077864317,3.60298789,3089.3,3088.8,0.92438727]
[1768077864509,3.60298789,3089.3,3088.8,0.002]
[1768077875137,3.60298789,3089.3,3089.1,0.002]
[1768077875310,3.60298789,3089.3,3088.8,0.002]
[1768077875510,0.79983508,3089.2,3088.8,0.002]
[1768077886762,0.79983508,3089.2,3089.1,0.002]
[1768077886962,0.79983508,3089.2,3088.8,0.002]
[1768077891968,4.03693833,3089.2,3088.8,0.002]
[1768077892462,7.27404158,3089.2,3088.5,0.98790532]
[1768077892667,0.81885736,3089.1,3088.5,0.98790532]
[1768077893246,0.81885736,3089.1,3088.3,0.002]
[1768077893247,6.47458724,3089.0,3088.3,0.002]
[1768077893459,6.47458724,3089.0,3088.5,0.06149564]
[1768077893663,7.4462204,3089.0,3088.3,0.98250861]
[1768077893850,4.20892678,3089.0,3088.3,0.98250861]
[1768077894053,0.82650044,3088.9,3088.3,0.98250861]
[1768077897981,4.06392775,3088.9,3088.3,0.98250861]
[1768077898161,4.06392775,3088.9,3088.6,0.002]
[1768077898358,4.06492775,3088.9,3088.3,0.98250861]
[1768077902779,8.23492612,3088.9,3088.3,0.06349564]
[1768077902986,0.92065593,3088.8,3088.3,0.06349564]
[1768077904281,0.92065593,3088.8,3088.3,0.98920166]
[1768077904479,3.23842731,3088.9,3088.3,0.98920166]
[1768077904693,0.001,3088.9,3088.5,0.98720166]
[1768077910170,0.001,3088.9,3088.6,1e-08]
[1768078028206,0.001,3088.9,3088.6,0.97524128]
[1768078029309,0.001,3088.9,3088.6,1e-08]
[1768078085776,0.001,3088.9,3088.7,0.06149564]
[1768078085981,0.001,3088.9,3088.7,2e-08]
[1768078089385,0.94182622,3088.9,3088.7,2e-08]
[1768078089550,0.001,3088.9,3088.7,2e-08]
[1768078095687,0.94182622,3088.9,3088.7,2e-08]
[1768078100889,0.001,3088.9,3088.7,2e-08]
[1768078150041,0.001,3088.9,3088.7,0.92779502]
[1768078150946,5.43731412,3089.5,3088.7,0.92779502]
[1768078151145,5.43731412,3089.5,3088.9,0.08417508]
[1768078152443,6.30489451,3089.5,3088.9,0.08417508]
[1768078152648,6.47387235,3089.5,3088.9,0.08417508]
[1768078159863,0.42397784,3089.5,3089.1,0.08417508]
[1768078164567,0.001,3089.2,3089.1,0.08417508]
[1768078167478,0.42397784,3089.5,3089.1,1.01197008]
[1768078167683,4.46613801,3090.0,3089.3,0.927795]
[1768078167878,6.1641587,3090.0,3089.3,0.927795]
[1768078168587,6.1641587,3090.0,3089.4,0.08417508]
[1768078170978,0.97400561,3089.9,3089.4,0.08417508]
[1768078173236,4.21035833,3089.9,3089.4,0.08417508]
[1768078176184,0.001,3089.6,3089.4,0.08417508]
[1768078177263,0.001,3089.6,3089.2,0.08497532]
[1768078177560,0.001,3089.6,3089.2,0.28450273]
[1768078186300,0.92277405,3089.6,3089.2,0.00080024]
[1768078187092,0.001,3089.6,3089.2,0.00080024]
[1768078187476,0.001,3089.6,3089.5,0.002]
[1768078187678,0.92277405,3089.6,3089.2,0.00080024]
[1768078191501,0.001,3089.6,3089.2,0.00080024]
[1768078193300,0.94177592,3089.6,3089.2,0.00080024]
[1768078195091,4.17844477,3089.6,3089.2,0.00080024]
[1768078195904,0.94077592,3089.5,3089.2,0.00080024]
[1768078201205,0.94077592,3089.4,3089.1,0.08617508]
[1768078203322,4.17766594,3089.4,3089.1,0.002]
[1768078203528,0.06246949,3089.1,3088.9,0.08417508]
[1768078204496,0.94119028,3089.3,3088.9,0.08417508]
[1768078208785,4.1779965,3089.5,3088.9,0.08417508]
[1768078210686,0.94119028,3089.4,3088.9,0.08417508]
[1768078216016,0.00180024,3089.6,3089.1,1.06696502]
[1768078217124,0.00180024,3089.6,3089.3,0.08417508]
[1768078221393,0.00180024,3089.6,3089.2,0.98278994]
[1768078224102,0.001,3089.3,3089.2,0.98278994]
[1768078224704,0.00180024,3089.6,3089.2,0.98278994]
[1768078233335,0.00180024,3089.6,3089.3,0.08417508]
[1768078234927,0.91141328,3089.5,3089.3,0.08417508]
[1768078235136,0.91141328,3089.8,3089.3,0.08417508]
[1768078235928,3.4913508,3089.9,3089.3,1.00668305]
[1768078237234,0.255,3089.9,3089.3,1.00668305]
[1768078237535,3.49135279,3089.9,3089.3,1.00668305]
[1768078241167,4.40276607,3089.9,3089.3,0.08417508]
[1768078241349,0.91141328,3089.8,3089.3,0.08417508]
[1768078243858,4.14789621,3089.8,3089.2,0.00080032]
[1768078246663,3.23648293,3089.8,3089.3,0.92250797]
[1768078247859,3.23648293,3089.8,3089.5,0.002]
[1768078248156,3.92228947,3089.8,3089.3,0.92250797]
[1768078248356,3.23648293,3089.8,3089.3,0.92250797]
[1768078249973,3.23648293,3089.8,3089.2,0.00080032]
[1768078250763,3.23648293,3089.8,3089.3,0.08417508]
[1768078252233,3.23648293,3089.8,3089.3,1.00668305]
[1768078259373,3.23648293,3089.8,3089.5,0.002]
[1768078259673,0.001,3089.5,3089.3,0.08417508]
[1768078264689,0.001,3089.5,3089.3,1.00716556]
[1768078278111,0.0008,3090.0,3089.4,0.92299048]
[1768078278308,0.0008,3090.0,3089.5,1.00716556]
[1768078284300,0.001,3089.7,3089.5,1.00716556]
[1768078292310,0.001,3089.7,3089.5,0.08417508]
[1768078295296,0.001,3089.7,3089.6,0.98386217]
[1768078297787,3.4034444,3090.6,3090.0,0.00080008]
[1768078298015,4.19069674,3090.6,3090.0,0.00080008]
[1768078298399,5.16848984,3090.6,3090.0,0.00080008]
[1768078300918,0.95499573,3090.6,3090.0,0.98466225]
[1768078301244,0.16774339,3090.6,3090.0,0.98466225]
[1768078301385,4.21331295,3090.7,3090.0,1.95570101]
[1768078306136,3.23551985,3090.7,3090.0,1.95570101]
[1768078306516,4.21400367,3090.8,3090.0,1.95570101]
[1768078306726,4.21400367,3090.8,3090.0,2.15968862]
[1768078308039,0.9777931,3090.7,3090.0,2.15968862]
[1768078310136,6.47162114,3090.8,3090.1,0.98386217]
[1768078310308,3.23621057,3090.8,3090.1,1.06803725]
[1768078312843,4.21722023,3090.8,3090.1,1.06803725]
[1768078313043,7.4526308,3090.8,3090.1,1.06803725]
[1768078319135,7.4526308,3090.8,3090.3,0.002]
[1768078331754,7.4526308,3090.8,3090.6,0.001]
[1768078331934,0.90181614,3090.7,3090.3,0.002]
[1768078334251,4.1374094,3090.7,3090.3,0.002]
[1768078337068,3.23621057,3090.8,3090.3,0.002]
[1768078338427,6.47162114,3090.8,3090.3,0.002]
[1768078342466,3.23621057,3090.8,3090.3,0.98356264]
[1768078343372,3.23621057,3090.8,3090.6,0.001]
[1768078343666,3.23621057,3090.8,3090.3,0.002]
[1768078344052,6.47162114,3090.8,3090.3,0.002]
[1768078348810,6.47162114,3090.8,3090.3,0.98356264]
[1768078350202,3.23621057,3090.8,3090.3,0.98356264]
[1768078355010,3.23621057,3090.8,3090.6,0.001]
[1768078355226,3.92575518,3090.8,3090.3,0.002]
[1768078359102,7.16116575,3090.8,3090.3,0.002]
[1768078360423,7.16116575,3090.8,3090.3,0.94991618]
[1768078366615,7.16116575,3090.8,3090.3,0.94891815]
[1768078366806,7.16116575,3090.8,3090.3,0.94791914]
[1768078367002,7.16116575,3090.8,3090.1,0.08417508]
[1768078367324,7.16116575,3090.8,3090.1,1.03209126]
[1768078367504,6.47162114,3090.8,3090.1,1.03209126]
[1768078378636,0.002,3090.5,3090.1,1.03209126]
[1768078383041,0.002,3090.5,3090.3,1.02564964]
[1768078393966,0.002,3090.5,3090.3,0.08417508]
[1768078397744,0.002,3090.5,3090.1,0.08417508]
[1768078397940,0.002,3090.5,3090.1,0.29132174]
[1768078398152,0.97772044,3090.5,3090.1,0.29132174]
[1768078398969,0.002,3090.5,3090.0,0.00280008]
[1768078399173,0.97772044,3090.5,3090.0,0.00280008]
[1768078399937,0.97572044,3090.3,3090.0,0.00280008]
[1768078400446,4.21347517,3090.5,3090.0,0.00280008]
[1768078400668,0.42134752,3090.4,3090.0,0.00280008]
[1768078401863,3.65720261,3090.4,3090.0,0.00280008]
[1768078402368,3.65720261,3090.4,3090.3,0.001]
[1768078402567,3.65720261,3090.4,3090.0,0.00280008]
[1768078403890,0.42134752,3090.4,3090.0,0.00280008]
[1768078404770,3.65719206,3090.4,3090.0,0.00280008]
[1768078405169,0.42134752,3090.4,3090.0,0.00280008]
[1768078410142,4.21350713,3090.5,3090.0,0.00280008]
[1768078413576,0.93487536,3090.4,3090.0,0.00280008]
[1768078414078,0.93567544,3090.4,3090.0,0.00080304]
[1768078414280,0.93567544,3090.4,3089.8,0.002]
[1768078415792,3.23593178,3090.3,3089.8,0.002]
[1768078418990,4.17080714,3090.3,3089.8,0.002]
[1768078425008,0.97532581,3090.2,3089.6,0.00080008]
[1768078425212,0.93487536,3090.2,3089.6,0.00080008]
[1768078426207,0.001,3090.1,3089.6,0.00080008]
[1768078427487,3.23714122,3090.1,3089.6,0.00080008]
[1768078429211,6.47328244,3090.1,3089.6,0.00080008]
[1768078429410,6.47328244,3090.1,3089.5,0.002]
[1768078429411,0.93567544,3090.0,3089.5,0.002]
[1768078431814,4.17199126,3090.0,3089.5,0.002]
[1768078433809,3.2371159,3090.0,3089.5,0.002]
[1768078434221,0.00080008,3090.0,3089.7,1.05605788]
[1768078441019,0.00080008,3090.0,3089.7,0.9718828]
[1768078442929,0.00080008,3090.0,3089.5,0.08617508]
[1768078442930,0.00080008,3090.0,3089.5,0.9738828]
[1768078443125,0.00080008,3090.0,3089.5,0.002]
[1768078443430,0.99650542,3089.9,3089.5,0.002]
[1768078443613,5.61028049,3089.9,3089.2,0.00080032]
[1768078443934,0.99650542,3089.8,3089.2,0.00080032]
[1768078445013,0.99650542,3089.7,3089.2,0.00080032]
[1768078445421,4.23308828,3089.7,3089.2,0.00080032]
[1768078445915,0.99650542,3089.7,3089.2,0.00080032]
[1768078446534,3.49141905,3089.9,3089.2,0.00080032]
[1768078446535,4.48792447,3089.9,3089.2,0.00080032]
[1768078446835,0.255,3089.9,3089.2,0.94371403]
[1768078447832,3.49138745,3089.9,3089.2,0.94371403]
[1768078449732,3.49138745,3089.9,3089.5,0.002]
[1768078449898,0.001,3089.7,3089.5,0.002]
[1768078451933,0.001,3089.7,3089.5,0.94491371]
[1768078453503,0.001,3089.7,3089.5,0.002]
[1768078468155,0.001,3089.7,3089.5,0.94491371]
[1768078469025,0.001,3089.7,3089.5,0.002]
[1768078505390,0.97103785,3089.7,3089.5,0.002]
[1768078505684,0.97003785,3089.5,3089.2,0.00080032]
[1768078506201,0.97003785,3089.5,3088.8,0.255]
[1768078506558,1.01049747,3089.5,3088.8,0.255]
[1768078507282,0.00080032,3089.6,3088.8,0.255]
[1768078507283,4.20691232,3089.4,3088.8,0.255]
[1768078507451,4.95540494,3089.4,3088.8,0.255]
[1768078507787,0.97003785,3089.3,3088.8,0.255]
[1768078508183,0.97003785,3089.3,3088.7,0.002]
[1768078511294,4.20703275,3089.3,3088.7,0.002]
[1768078512094,0.97003785,3089.3,3088.7,0.002]
[1768078512299,0.97003785,3089.3,3088.7,0.08617508]
[1768078519399,0.97003785,3089.3,3089.0,0.002]
[1768078519600,1.39072558,3089.3,3089.0,0.002]
[1768078522499,0.42068773,3089.3,3089.0,0.002]
[1768078524300,0.001,3089.4,3089.0,0.002]
[1768078531210,0.001,3089.1,3089.0,0.002]
[1768078593823,0.001,3089.1,3089.0,0.92825279]
[1768078594022,0.001,3089.4,3089.0,0.92825279]
[1768078594322,0.001,3089.7,3089.2,0.0008004]
[1768078594521,0.46505686,3089.7,3089.2,0.0008004]
[1768078595152,0.001,3089.7,3089.2,0.0008004]
[1768078598845,0.001,3089.7,3089.2,0.92705319]
[1768078599859,0.001,3089.7,3089.5,0.002]
[1768078601359,0.001,3089.7,3089.2,0.92705319]
[1768078612365,0.001,3089.7,3089.5,0.002]
[1768078612570,0.001,3089.7,3089.2,0.92705319]
[1768078624001,0.001,3089.7,3089.5,0.002]
[1768078624179,0.001,3089.7,3089.2,0.92705319]
[1768078635612,0.001,3089.7,3089.5,0.002]
[1768078635814,0.001,3089.7,3089.2,0.92705319]
[1768078647122,0.001,3089.7,3089.5,0.002]
[1768078647298,0.001,3089.7,3089.2,0.92705319]
[1768078658730,0.001,3089.7,3089.5,0.002]
[1768078659034,0.001,3089.7,3089.2,0.92705319]
[1768078665312,0.001,3089.7,3089.2,0.0008004]
[1768078665521,0.97746494,3089.7,3089.2,0.0008004]
[1768078665694,1.76488885,3089.7,3089.2,0.0008004]